[Event "Titled Tuesday Blitz January 03 Late 2023"]
[White "Bilan, Danila"]
[Black "Nakamura, Hikaru"]
[WhiteFideId "24161918"]
[BlackFideId "2016192"]
[WhiteElo "2303"]
[BlackElo "2775"]
[Result "0-1"]
[Round "01"]
[TimeControl "180+2"]
[Date "2023.01.03"]
[WhiteClock "0:00:03"]
[BlackClock "0:01:41"]

1. d4 {[%clk 0:02:59]}  f5 {[%clk 0:02:57]} 2. Nf3 {[%clk 0:02:58]}  Nf6 {[%clk 0:02:57]} 3. g3 {[%clk 0:02:58]}  g6 {[%clk 0:02:55]} 4. Bg2 {[%clk 0:02:58]}  Bg7 {[%clk 0:02:55]} 5. O-O {[%clk 0:02:59]}  O-O {[%clk 0:02:56]} 6. c4 {[%clk 0:02:59]}  d6 {[%clk 0:02:57]} 7. Nc3 {[%clk 0:02:59]}  Nc6 {[%clk 0:02:57]} 8. d5 {[%clk 0:02:57]}  Na5 {[%clk 0:02:57]} 9. Nd2 {[%clk 0:02:46]}  c5 {[%clk 0:02:55]} 10. Qc2 {[%clk 0:02:45]}  a6 {[%clk 0:02:53]} 11. b3 {[%clk 0:02:44]}  Bd7 {[%clk 0:02:50]} 12. Bb2 {[%clk 0:02:42]}  b5 {[%clk 0:02:50]} 13. e4 {[%clk 0:02:23]}  f4 {[%clk 0:02:48]} 14. Ne2 {[%clk 0:02:10]}  Nh5 {[%clk 0:02:41]} 15. Bxg7 {[%clk 0:02:06]}  Kxg7 {[%clk 0:02:42]} 16. Qc3+ {[%clk 0:01:55]}  Kg8 {[%clk 0:02:41]} 17. e5 {[%clk 0:01:44]}  b4 {[%clk 0:02:36]} 18. Qb2 {[%clk 0:01:41]}  Bf5 {[%clk 0:02:34]} 19. h3 {[%clk 0:01:19]}  Bd3 {[%clk 0:02:30]} 20. Rfe1 {[%clk 0:01:17]}  Bxe2 {[%clk 0:02:30]} 21. Rxe2 {[%clk 0:01:16]}  fxg3 {[%clk 0:02:30]} 22. Ne4 {[%clk 0:00:59]}  Nf4 {[%clk 0:02:26]} 23. fxg3 {[%clk 0:00:53]}  Nxe2+ {[%clk 0:02:26]} 24. Qxe2 {[%clk 0:00:54]}  Rf5 {[%clk 0:02:24]} 25. e6 {[%clk 0:00:45]}  Qf8 {[%clk 0:02:19]} 26. h4 {[%clk 0:00:40]}  Qg7 {[%clk 0:02:17]} 27. Re1 {[%clk 0:00:35]}  Raf8 {[%clk 0:02:17]} 28. Qg4 {[%clk 0:00:30]}  h6 {[%clk 0:02:01]} 29. Kh2 {[%clk 0:00:29]}  Nb7 {[%clk 0:02:01]} 30. Qe2 {[%clk 0:00:20]}  a5 {[%clk 0:02:01]} 31. Bh3 {[%clk 0:00:20]}  Re5 {[%clk 0:02:01]} 32. Qd2 {[%clk 0:00:14]}  a4 {[%clk 0:02:01]} 33. Nf2 {[%clk 0:00:09]}  Rxe1 {[%clk 0:01:59]} 34. Qxe1 {[%clk 0:00:10]}  Qb2 {[%clk 0:01:59]} 35. Kg1 {[%clk 0:00:09]}  Qxf2+ {[%clk 0:01:53]} 36. Qxf2 {[%clk 0:00:09]}  Rxf2 {[%clk 0:01:53]} 37. Kxf2 {[%clk 0:00:08]}  a3 {[%clk 0:01:49]} 38. Bg4 {[%clk 0:00:07]}  Kg7 {[%clk 0:01:47]} 39. Ke3 {[%clk 0:00:07]}  Kf6 {[%clk 0:01:48]} 40. Ke4 {[%clk 0:00:07]}  h5 {[%clk 0:01:47]} 41. Bd1 {[%clk 0:00:07]}  Na5 {[%clk 0:01:48]} 42. Bc2 {[%clk 0:00:07]}  g5 {[%clk 0:01:48]} 43. Bd1 {[%clk 0:00:07]}  Kg6 {[%clk 0:01:47]} 44. Kd3 {[%clk 0:00:06]}  gxh4 {[%clk 0:01:45]} 45. gxh4 {[%clk 0:00:07]}  Kf5 {[%clk 0:01:45]} 46. Bxh5 {[%clk 0:00:05]}  Nxb3 {[%clk 0:01:43]} 47. Bd1 {[%clk 0:00:04]}  Nc1+ {[%clk 0:01:41]} 48. Kd2 {[%clk 0:00:02]}  Nxa2 {[%clk 0:01:41]} 49. Bc2+ {[%clk 0:00:03]}  Kg4 {[%clk 0:01:41]} 50. Bb3 {[%clk 0:00:03]}  Nc3 {[%clk 0:01:41]} 0-1


[Site "https://www.chess.com"]

[Event "Titled Tuesday Blitz January 03 Late 2023"]
[White "Altman, Joshua"]
[Black "Deac, Bogdan-Daniel"]
[WhiteFideId "426210"]
[BlackFideId "1226380"]
[WhiteElo "2120"]
[BlackElo "2700"]
[Result "1-0"]
[Round "01"]
[TimeControl "180+2"]
[Date "2023.01.03"]
[WhiteClock "0:00:50"]
[BlackClock "0:00:11"]

1. d4 {[%clk 0:03:00]}  g6 {[%clk 0:02:59]} 2. Nf3 {[%clk 0:03:00]}  Bg7 {[%clk 0:03:00]} 3. c4 {[%clk 0:03:01]}  e6 {[%clk 0:02:59]} 4. Nc3 {[%clk 0:03:01]}  Ne7 {[%clk 0:02:59]} 5. Bg5 {[%clk 0:03:01]}  h6 {[%clk 0:02:59]} 6. Bh4 {[%clk 0:03:01]}  g5 {[%clk 0:02:58]} 7. Bg3 {[%clk 0:03:01]}  Nf5 {[%clk 0:02:58]} 8. e3 {[%clk 0:03:01]}  h5 {[%clk 0:02:52]} 9. h4 {[%clk 0:02:49]}  g4 {[%clk 0:02:50]} 10. Nd2 {[%clk 0:02:46]}  Nxg3 {[%clk 0:02:47]} 11. fxg3 {[%clk 0:02:46]}  Bh6 {[%clk 0:02:38]} 12. Qe2 {[%clk 0:02:37]}  d6 {[%clk 0:02:37]} 13. O-O-O {[%clk 0:02:36]}  b6 {[%clk 0:02:33]} 14. Qd3 {[%clk 0:02:36]}  Bb7 {[%clk 0:02:33]} 15. Rg1 {[%clk 0:02:36]}  Nd7 {[%clk 0:02:30]} 16. Be2 {[%clk 0:02:35]}  a6 {[%clk 0:02:30]} 17. Kb1 {[%clk 0:02:34]}  Qe7 {[%clk 0:02:30]} 18. e4 {[%clk 0:02:13]}  O-O-O {[%clk 0:02:29]} 19. Nb3 {[%clk 0:02:11]}  c5 {[%clk 0:02:29]} 20. Rgf1 {[%clk 0:02:06]}  Kb8 {[%clk 0:02:25]} 21. Rde1 {[%clk 0:01:58]}  Bg7 {[%clk 0:02:20]} 22. Bd1 {[%clk 0:01:57]}  cxd4 {[%clk 0:02:19]} 23. Nxd4 {[%clk 0:01:57]}  Ne5 {[%clk 0:02:13]} 24. Qe2 {[%clk 0:01:56]}  Rc8 {[%clk 0:02:10]} 25. Bb3 {[%clk 0:01:50]}  Rc5 {[%clk 0:01:49]} 26. Na4 {[%clk 0:01:46]}  Ra5 {[%clk 0:01:36]} 27. Nxb6 {[%clk 0:01:43]}  Qc7 {[%clk 0:01:36]} 28. Na4 {[%clk 0:01:41]}  Nxc4 {[%clk 0:01:36]} 29. Rc1 {[%clk 0:01:28]}  Bxe4+ {[%clk 0:00:35]} 30. Qxe4 {[%clk 0:01:11]}  Nd2+ {[%clk 0:00:34]} 31. Ka1 {[%clk 0:01:11]}  Nxe4 {[%clk 0:00:18]} 32. Rxc7 {[%clk 0:01:10]}  Rxa4 {[%clk 0:00:17]} 33. Bxa4 {[%clk 0:00:59]}  Bxd4 {[%clk 0:00:13]} 34. Rfxf7 {[%clk 0:00:57]}  Nxg3 {[%clk 0:00:12]} 35. Rb7+ {[%clk 0:00:56]}  Kc8 {[%clk 0:00:12]} 36. Rfc7+ {[%clk 0:00:50]}  Kd8 {[%clk 0:00:11]} 37. Rc4 {[%clk 0:00:50]} 1-0


[Site "https://www.chess.com"]

[Event "Titled Tuesday Blitz January 03 Late 2023"]
[White "Naroditsky, Daniel"]
[Black "Yashmetov, Mikhail"]
[WhiteFideId "2026961"]
[BlackFideId "24198900"]
[WhiteElo "2618"]
[BlackElo "2323"]
[Result "1-0"]
[Round "01"]
[TimeControl "180+2"]
[Date "2023.01.03"]
[WhiteClock "0:01:50"]
[BlackClock "0:00:23"]

1. e4 {[%clk 0:03:00]}  c5 {[%clk 0:02:59]} 2. Nf3 {[%clk 0:03:00]}  Nc6 {[%clk 0:02:59]} 3. Bb5 {[%clk 0:03:00]}  g6 {[%clk 0:02:58]} 4. O-O {[%clk 0:03:00]}  Bg7 {[%clk 0:02:57]} 5. c3 {[%clk 0:03:01]}  Nf6 {[%clk 0:02:56]} 6. e5 {[%clk 0:03:02]}  Nd5 {[%clk 0:02:56]} 7. d4 {[%clk 0:03:02]}  cxd4 {[%clk 0:02:54]} 8. cxd4 {[%clk 0:03:03]}  O-O {[%clk 0:02:53]} 9. Nc3 {[%clk 0:03:04]}  Nxc3 {[%clk 0:02:50]} 10. bxc3 {[%clk 0:03:05]}  d5 {[%clk 0:02:51]} 11. exd6 {[%clk 0:03:05]}  Qxd6 {[%clk 0:02:50]} 12. a4 {[%clk 0:03:05]}  Bg4 {[%clk 0:02:50]} 13. h3 {[%clk 0:03:05]}  Bf5 {[%clk 0:02:47]} 14. Re1 {[%clk 0:03:03]}  Rac8 {[%clk 0:02:43]} 15. Ba3 {[%clk 0:03:03]}  Qc7 {[%clk 0:02:30]} 16. Rc1 {[%clk 0:02:55]}  Bf6 {[%clk 0:02:20]} 17. Bxc6 {[%clk 0:02:38]}  bxc6 {[%clk 0:02:17]} 18. Ne5 {[%clk 0:02:38]}  Rfd8 {[%clk 0:02:12]} 19. Qf3 {[%clk 0:02:34]}  Rd5 {[%clk 0:01:59]} 20. Nc4 {[%clk 0:02:32]}  Qd7 {[%clk 0:01:36]} 21. Bc5 {[%clk 0:02:27]}  Bg5 {[%clk 0:01:26]} 22. Rcd1 {[%clk 0:02:21]}  Rb8 {[%clk 0:01:18]} 23. Ne5 {[%clk 0:02:16]}  Qc8 {[%clk 0:01:11]} 24. c4 {[%clk 0:02:15]}  Rd8 {[%clk 0:01:09]} 25. Nxc6 {[%clk 0:02:14]}  Rd7 {[%clk 0:00:56]} 26. Bxe7 {[%clk 0:02:06]}  Bxe7 {[%clk 0:00:46]} 27. Nxe7+ {[%clk 0:02:05]}  Rxe7 {[%clk 0:00:47]} 28. Rxe7 {[%clk 0:02:05]}  Qxc4 {[%clk 0:00:47]} 29. Rxa7 {[%clk 0:02:02]}  Rd8 {[%clk 0:00:42]} 30. Qe3 {[%clk 0:02:00]}  Be6 {[%clk 0:00:34]} 31. a5 {[%clk 0:01:57]}  Qa4 {[%clk 0:00:32]} 32. Rd2 {[%clk 0:01:52]}  Rd5 {[%clk 0:00:32]} 33. Qc3 {[%clk 0:01:50]}  Qd7 {[%clk 0:00:23]} 34. Rxd7 {[%clk 0:01:50]} 1-0


[Site "https://www.chess.com"]

[Event "Titled Tuesday Blitz January 03 Late 2023"]
[White "Mei, Austin"]
[Black "Martinez Alcantara, Jose Eduardo"]
[WhiteFideId "30948479"]
[BlackFideId "3805662"]
[WhiteElo "2218"]
[BlackElo "2619"]
[Result "0-1"]
[Round "01"]
[TimeControl "180+2"]
[Date "2023.01.03"]
[WhiteClock "0:00:22"]
[BlackClock "0:00:54"]

1. e4 {[%clk 0:02:58]}  c5 {[%clk 0:02:59]} 2. Nf3 {[%clk 0:02:58]}  d6 {[%clk 0:02:56]} 3. d4 {[%clk 0:02:57]}  cxd4 {[%clk 0:02:56]} 4. Nxd4 {[%clk 0:02:58]}  Nf6 {[%clk 0:02:56]} 5. Nc3 {[%clk 0:02:57]}  Nc6 {[%clk 0:02:57]} 6. Bg5 {[%clk 0:02:57]}  e6 {[%clk 0:02:57]} 7. Qd2 {[%clk 0:02:57]}  a6 {[%clk 0:02:57]} 8. O-O-O {[%clk 0:02:57]}  Bd7 {[%clk 0:02:58]} 9. f3 {[%clk 0:02:56]}  Nxd4 {[%clk 0:02:56]} 10. Qxd4 {[%clk 0:02:56]}  Bc6 {[%clk 0:02:57]} 11. h4 {[%clk 0:02:56]}  h6 {[%clk 0:02:46]} 12. Be3 {[%clk 0:02:56]}  d5 {[%clk 0:02:45]} 13. e5 {[%clk 0:02:55]}  Nd7 {[%clk 0:02:45]} 14. f4 {[%clk 0:02:51]}  Bc5 {[%clk 0:02:38]} 15. Qd2 {[%clk 0:02:52]}  Qb6 {[%clk 0:02:36]} 16. Bxc5 {[%clk 0:02:50]}  Nxc5 {[%clk 0:02:35]} 17. Bd3 {[%clk 0:02:50]}  O-O-O {[%clk 0:02:30]} 18. Ne2 {[%clk 0:02:49]}  d4 {[%clk 0:02:26]} 19. Rhg1 {[%clk 0:02:42]}  Kb8 {[%clk 0:02:17]} 20. b3 {[%clk 0:02:42]}  Rd7 {[%clk 0:02:13]} 21. Kb1 {[%clk 0:02:42]}  Rc8 {[%clk 0:02:11]} 22. g4 {[%clk 0:02:26]}  Bf3 {[%clk 0:01:59]} 23. Ka1 {[%clk 0:01:48]}  Ne4 {[%clk 0:01:25]} 24. Bxe4 {[%clk 0:01:46]}  Bxe4 {[%clk 0:01:26]} 25. Rc1 {[%clk 0:00:57]}  Bxc2 {[%clk 0:00:55]} 26. Rxc2 {[%clk 0:00:20]}  Rxc2 {[%clk 0:00:55]} 27. Qxc2 {[%clk 0:00:21]}  d3 {[%clk 0:00:55]} 28. Qb2 {[%clk 0:00:22]}  dxe2 {[%clk 0:00:55]} 29. Re1 {[%clk 0:00:22]}  Rd1+ {[%clk 0:00:54]} 30. Qb1 {[%clk 0:00:22]}  Qd4# {[%clk 0:00:54]} 0-1


[Site "https://www.chess.com"]

[Event "Titled Tuesday Blitz January 03 Late 2023"]
[White "Paravyan, David"]
[Black "Ozdemir, Serhan Berat"]
[WhiteFideId "4194985"]
[BlackFideId "6374611"]
[WhiteElo "2601"]
[BlackElo "2223"]
[Result "1-0"]
[Round "01"]
[TimeControl "180+2"]
[Date "2023.01.03"]
[WhiteClock "0:00:10"]
[BlackClock "0:00:02"]

1. e4 {[%clk 0:03:00]}  c5 {[%clk 0:02:59]} 2. Nf3 {[%clk 0:02:58]}  e6 {[%clk 0:02:59]} 3. d4 {[%clk 0:02:58]}  cxd4 {[%clk 0:03:00]} 4. Nxd4 {[%clk 0:02:59]}  a6 {[%clk 0:03:01]} 5. Bd3 {[%clk 0:02:59]}  Nf6 {[%clk 0:02:52]} 6. O-O {[%clk 0:02:58]}  d6 {[%clk 0:02:52]} 7. f4 {[%clk 0:02:52]}  Nbd7 {[%clk 0:02:51]} 8. Qe2 {[%clk 0:02:44]}  Qc7 {[%clk 0:02:50]} 9. c4 {[%clk 0:02:40]}  g6 {[%clk 0:02:49]} 10. Nc3 {[%clk 0:02:26]}  Bg7 {[%clk 0:02:50]} 11. Be3 {[%clk 0:02:24]}  O-O {[%clk 0:02:49]} 12. Rac1 {[%clk 0:02:23]}  b6 {[%clk 0:02:47]} 13. b4 {[%clk 0:02:22]}  Bb7 {[%clk 0:02:48]} 14. a3 {[%clk 0:02:23]}  Rfe8 {[%clk 0:02:34]} 15. h3 {[%clk 0:02:18]}  Rac8 {[%clk 0:02:12]} 16. Kh2 {[%clk 0:02:16]}  Qb8 {[%clk 0:02:05]} 17. Nf3 {[%clk 0:02:16]}  d5 {[%clk 0:01:56]} 18. cxd5 {[%clk 0:02:06]}  exd5 {[%clk 0:01:56]} 19. e5 {[%clk 0:02:06]}  Nh5 {[%clk 0:01:36]} 20. g3 {[%clk 0:01:29]}  f6 {[%clk 0:01:21]} 21. e6 {[%clk 0:01:05]}  Rxe6 {[%clk 0:01:19]} 22. Qf2 {[%clk 0:01:06]}  Rce8 {[%clk 0:01:08]} 23. Bd4 {[%clk 0:00:55]}  R6e7 {[%clk 0:00:35]} 24. Rce1 {[%clk 0:00:53]}  Qd8 {[%clk 0:00:31]} 25. Rxe7 {[%clk 0:00:50]}  Rxe7 {[%clk 0:00:32]} 26. Re1 {[%clk 0:00:40]}  Rxe1 {[%clk 0:00:31]} 27. Qxe1 {[%clk 0:00:34]}  Kf7 {[%clk 0:00:20]} 28. Qd2 {[%clk 0:00:22]}  f5 {[%clk 0:00:19]} 29. Ng5+ {[%clk 0:00:20]}  Kg8 {[%clk 0:00:17]} 30. Ne6 {[%clk 0:00:18]}  Qe7 {[%clk 0:00:16]} 31. Nxg7 {[%clk 0:00:18]}  Nxg7 {[%clk 0:00:17]} 32. Ne2 {[%clk 0:00:15]}  Ne6 {[%clk 0:00:16]} 33. Bb2 {[%clk 0:00:14]}  Nf6 {[%clk 0:00:07]} 34. Qe3 {[%clk 0:00:13]}  Kf7 {[%clk 0:00:06]} 35. Qxb6 {[%clk 0:00:12]}  Ne4 {[%clk 0:00:03]} 36. Nd4 {[%clk 0:00:09]}  Nxd4 {[%clk 0:00:03]} 37. Qxd4 {[%clk 0:00:10]}  Qc7 {[%clk 0:00:02]} 38. Qg7+ {[%clk 0:00:10]} 1-0


[Site "https://www.chess.com"]

[Event "Titled Tuesday Blitz January 03 Late 2023"]
[White "Girsh, Daniel"]
[Black "Sarana, Alexey"]
[WhiteFideId "30949190"]
[BlackFideId "24133795"]
[WhiteElo "2123"]
[BlackElo "2685"]
[Result "0-1"]
[Round "01"]
[TimeControl "180+2"]
[Date "2023.01.03"]
[WhiteClock "0:00:15"]
[BlackClock "0:00:17"]

1. e4 {[%clk 0:03:00]}  e5 {[%clk 0:02:56]} 2. Nf3 {[%clk 0:03:01]}  Nc6 {[%clk 0:02:57]} 3. Bb5 {[%clk 0:03:01]}  a6 {[%clk 0:02:57]} 4. Ba4 {[%clk 0:03:02]}  Bc5 {[%clk 0:02:58]} 5. O-O {[%clk 0:03:01]}  Nge7 {[%clk 0:02:57]} 6. c3 {[%clk 0:03:00]}  Ng6 {[%clk 0:02:51]} 7. d4 {[%clk 0:02:59]}  Ba7 {[%clk 0:02:51]} 8. d5 {[%clk 0:02:58]}  Nce7 {[%clk 0:02:50]} 9. d6 {[%clk 0:02:49]}  cxd6 {[%clk 0:02:49]} 10. Qxd6 {[%clk 0:02:42]}  O-O {[%clk 0:02:46]} 11. Bg5 {[%clk 0:02:35]}  f6 {[%clk 0:02:42]} 12. Bb3+ {[%clk 0:02:35]}  Kh8 {[%clk 0:02:42]} 13. Be3 {[%clk 0:02:25]}  Bxe3 {[%clk 0:02:36]} 14. fxe3 {[%clk 0:02:26]}  b5 {[%clk 0:02:36]} 15. Nbd2 {[%clk 0:02:21]}  Bb7 {[%clk 0:02:37]} 16. h4 {[%clk 0:02:18]}  Nc8 {[%clk 0:02:36]} 17. Qd3 {[%clk 0:02:16]}  Nge7 {[%clk 0:02:31]} 18. c4 {[%clk 0:02:09]}  Nb6 {[%clk 0:01:59]} 19. c5 {[%clk 0:02:02]}  Nbc8 {[%clk 0:01:59]} 20. Bd5 {[%clk 0:01:58]}  Qc7 {[%clk 0:01:52]} 21. Rac1 {[%clk 0:01:56]}  Na7 {[%clk 0:01:48]} 22. h5 {[%clk 0:01:49]}  Nac6 {[%clk 0:01:45]} 23. a3 {[%clk 0:01:49]}  Rad8 {[%clk 0:01:43]} 24. h6 {[%clk 0:01:29]}  gxh6 {[%clk 0:01:42]} 25. Nh4 {[%clk 0:01:25]}  d6 {[%clk 0:01:42]} 26. Qe2 {[%clk 0:01:19]}  dxc5 {[%clk 0:01:42]} 27. Qh5 {[%clk 0:01:17]}  Nxd5 {[%clk 0:00:30]} 28. exd5 {[%clk 0:01:16]}  Rxd5 {[%clk 0:00:30]} 29. Ne4 {[%clk 0:01:15]}  Qg7 {[%clk 0:00:27]} 30. Rf3 {[%clk 0:01:11]}  Ne7 {[%clk 0:00:24]} 31. Rg3 {[%clk 0:01:07]}  Qf7 {[%clk 0:00:24]} 32. Qxh6 {[%clk 0:01:04]}  Rg8 {[%clk 0:00:23]} 33. Rf1 {[%clk 0:00:43]}  f5 {[%clk 0:00:20]} 34. Nxf5 {[%clk 0:00:37]}  Nxf5 {[%clk 0:00:13]} 35. Rxg8+ {[%clk 0:00:36]}  Qxg8 {[%clk 0:00:13]} 36. Qf6+ {[%clk 0:00:19]}  Ng7 {[%clk 0:00:11]} 37. Ng5 {[%clk 0:00:19]}  Rd7 {[%clk 0:00:10]} 38. Nf7+ {[%clk 0:00:18]}  Rxf7 {[%clk 0:00:10]} 39. Qxf7 {[%clk 0:00:19]}  Qxf7 {[%clk 0:00:10]} 40. Rxf7 {[%clk 0:00:19]}  Bd5 {[%clk 0:00:09]} 41. Rd7 {[%clk 0:00:19]}  Bc4 {[%clk 0:00:08]} 42. Rc7 {[%clk 0:00:18]}  Nf5 {[%clk 0:00:07]} 43. Rxc5 {[%clk 0:00:19]}  Nxe3 {[%clk 0:00:08]} 44. Rxe5 {[%clk 0:00:19]}  Nd1 {[%clk 0:00:08]} 45. b4 {[%clk 0:00:18]}  Nc3 {[%clk 0:00:08]} 46. Re7 {[%clk 0:00:19]}  Nb1 {[%clk 0:00:08]} 47. Ra7 {[%clk 0:00:19]}  Nxa3 {[%clk 0:00:08]} 48. Rxa6 {[%clk 0:00:19]}  Nc2 {[%clk 0:00:09]} 49. Rf6 {[%clk 0:00:19]}  Nxb4 {[%clk 0:00:10]} 50. g3 {[%clk 0:00:20]}  Nd5 {[%clk 0:00:10]} 51. Rd6 {[%clk 0:00:19]}  Kg7 {[%clk 0:00:11]} 52. Kf2 {[%clk 0:00:19]}  Nf6 {[%clk 0:00:11]} 53. Kf3 {[%clk 0:00:19]}  b4 {[%clk 0:00:12]} 54. Rb6 {[%clk 0:00:18]}  b3 {[%clk 0:00:12]} 55. g4 {[%clk 0:00:17]}  h6 {[%clk 0:00:11]} 56. Rb7+ {[%clk 0:00:16]}  Kg6 {[%clk 0:00:11]} 57. Kf4 {[%clk 0:00:16]}  Bf7 {[%clk 0:00:10]} 58. Rb6 {[%clk 0:00:16]}  Kg7 {[%clk 0:00:11]} 59. Rb7 {[%clk 0:00:16]}  Nd5+ {[%clk 0:00:10]} 60. Ke5 {[%clk 0:00:15]}  Nc3 {[%clk 0:00:10]} 61. Kd4 {[%clk 0:00:15]}  Nd1 {[%clk 0:00:11]} 62. Kd3 {[%clk 0:00:14]}  Nf2+ {[%clk 0:00:11]} 63. Kc3 {[%clk 0:00:14]}  Nxg4 {[%clk 0:00:12]} 64. Re7 {[%clk 0:00:13]}  Nf6 {[%clk 0:00:12]} 65. Re2 {[%clk 0:00:12]}  h5 {[%clk 0:00:13]} 66. Rg2+ {[%clk 0:00:13]}  Ng4 {[%clk 0:00:13]} 67. Rg1 {[%clk 0:00:11]}  Kg6 {[%clk 0:00:14]} 68. Rg2 {[%clk 0:00:12]}  Kg5 {[%clk 0:00:14]} 69. Rc2 {[%clk 0:00:12]}  bxc2 {[%clk 0:00:14]} 70. Kxc2 {[%clk 0:00:12]}  h4 {[%clk 0:00:13]} 71. Kd2 {[%clk 0:00:13]}  h3 {[%clk 0:00:14]} 72. Ke2 {[%clk 0:00:14]}  h2 {[%clk 0:00:15]} 73. Kf3 {[%clk 0:00:14]}  h1=Q+ {[%clk 0:00:16]} 74. Kg3 {[%clk 0:00:15]}  Qh2+ {[%clk 0:00:16]} 75. Kf3 {[%clk 0:00:15]}  Bd5# {[%clk 0:00:17]} 0-1


[Site "https://www.chess.com"]

[Event "Titled Tuesday Blitz January 03 Late 2023"]
[White "Pranav, V"]
[Black "Al-Tarboush, Ward"]
[WhiteFideId "25060783"]
[BlackFideId "7601450"]
[WhiteElo "2597"]
[BlackElo "2256"]
[Result "1-0"]
[Round "01"]
[TimeControl "180+2"]
[Date "2023.01.03"]
[WhiteClock "0:02:28"]
[BlackClock "0:01:16"]

1. e4 {[%clk 0:03:00]}  c5 {[%clk 0:02:59]} 2. Nf3 {[%clk 0:03:01]}  Nc6 {[%clk 0:03:00]} 3. Bb5 {[%clk 0:03:01]}  e6 {[%clk 0:03:00]} 4. Bxc6 {[%clk 0:03:00]}  bxc6 {[%clk 0:02:59]} 5. d3 {[%clk 0:03:01]}  Ne7 {[%clk 0:02:58]} 6. O-O {[%clk 0:03:00]}  f6 {[%clk 0:02:57]} 7. Nc3 {[%clk 0:02:59]}  Ng6 {[%clk 0:02:56]} 8. h4 {[%clk 0:02:59]}  e5 {[%clk 0:02:51]} 9. h5 {[%clk 0:02:58]}  Nf4 {[%clk 0:02:50]} 10. Bxf4 {[%clk 0:02:58]}  exf4 {[%clk 0:02:51]} 11. Re1 {[%clk 0:02:59]}  Bd6 {[%clk 0:02:32]} 12. h6 {[%clk 0:02:49]}  g6 {[%clk 0:02:26]} 13. d4 {[%clk 0:02:48]}  O-O {[%clk 0:02:19]} 14. e5 {[%clk 0:02:48]}  fxe5 {[%clk 0:02:15]} 15. dxe5 {[%clk 0:02:49]}  Be7 {[%clk 0:02:11]} 16. Qd3 {[%clk 0:02:49]}  Qe8 {[%clk 0:01:57]} 17. Rad1 {[%clk 0:02:46]}  Qf7 {[%clk 0:01:56]} 18. Ne4 {[%clk 0:02:46]}  a5 {[%clk 0:01:41]} 19. c4 {[%clk 0:02:45]}  Qf5 {[%clk 0:01:34]} 20. b3 {[%clk 0:02:39]}  a4 {[%clk 0:01:33]} 21. Qc3 {[%clk 0:02:38]}  Rf7 {[%clk 0:01:18]} 22. Nd6 {[%clk 0:02:37]}  Bxd6 {[%clk 0:01:17]} 23. exd6 {[%clk 0:02:38]}  Ba6 {[%clk 0:01:16]} 24. Ne5 {[%clk 0:02:28]} 1-0


[Site "https://www.chess.com"]

[Event "Titled Tuesday Blitz January 03 Late 2023"]
[White "Xiong, Jeffery"]
[Black "Cadena M, Gustavo Adolfo"]
[WhiteFideId "2047640"]
[BlackFideId "4404815"]
[WhiteElo "2692"]
[BlackElo "2195"]
[Result "1-0"]
[Round "01"]
[TimeControl "180+2"]
[Date "2023.01.03"]
[WhiteClock "0:00:32"]
[BlackClock "0:00:02"]

1. e4 {[%clk 0:02:50]}  c6 {[%clk 0:02:58]} 2. Nf3 {[%clk 0:02:47]}  d5 {[%clk 0:02:59]} 3. d3 {[%clk 0:02:47]}  g6 {[%clk 0:02:55]} 4. e5 {[%clk 0:02:47]}  Bg7 {[%clk 0:02:55]} 5. d4 {[%clk 0:02:47]}  c5 {[%clk 0:02:52]} 6. c3 {[%clk 0:02:46]}  cxd4 {[%clk 0:02:51]} 7. cxd4 {[%clk 0:02:47]}  Nc6 {[%clk 0:02:51]} 8. Bb5 {[%clk 0:02:46]}  Bg4 {[%clk 0:02:50]} 9. Bxc6+ {[%clk 0:02:44]}  bxc6 {[%clk 0:02:50]} 10. O-O {[%clk 0:02:45]}  e6 {[%clk 0:02:48]} 11. Nbd2 {[%clk 0:02:44]}  Ne7 {[%clk 0:02:48]} 12. h3 {[%clk 0:02:44]}  Bxf3 {[%clk 0:02:43]} 13. Nxf3 {[%clk 0:02:45]}  O-O {[%clk 0:02:42]} 14. b3 {[%clk 0:02:45]}  c5 {[%clk 0:02:33]} 15. dxc5 {[%clk 0:02:36]}  Nc6 {[%clk 0:02:33]} 16. Bf4 {[%clk 0:02:21]}  a5 {[%clk 0:02:32]} 17. Qd2 {[%clk 0:02:18]}  Re8 {[%clk 0:02:29]} 18. a3 {[%clk 0:02:09]}  Qb8 {[%clk 0:02:27]} 19. Qc3 {[%clk 0:02:07]}  Qb7 {[%clk 0:02:11]} 20. Rab1 {[%clk 0:02:07]}  Reb8 {[%clk 0:02:01]} 21. Rfc1 {[%clk 0:02:06]}  Qc7 {[%clk 0:01:52]} 22. Qe3 {[%clk 0:02:05]}  Rb7 {[%clk 0:01:48]} 23. h4 {[%clk 0:01:57]}  Rab8 {[%clk 0:01:48]} 24. h5 {[%clk 0:01:57]}  Rb5 {[%clk 0:01:25]} 25. Re1 {[%clk 0:01:33]}  Qb7 {[%clk 0:01:20]} 26. hxg6 {[%clk 0:01:31]}  hxg6 {[%clk 0:01:19]} 27. b4 {[%clk 0:01:31]}  d4 {[%clk 0:00:23]} 28. Nxd4 {[%clk 0:00:45]}  Nxd4 {[%clk 0:00:24]} 29. Qxd4 {[%clk 0:00:46]}  Qa7 {[%clk 0:00:18]} 30. Bd2 {[%clk 0:00:44]}  axb4 {[%clk 0:00:17]} 31. axb4 {[%clk 0:00:44]}  Bf8 {[%clk 0:00:16]} 32. Ra1 {[%clk 0:00:37]}  Qc7 {[%clk 0:00:16]} 33. Bc3 {[%clk 0:00:34]}  Bg7 {[%clk 0:00:15]} 34. Red1 {[%clk 0:00:33]}  Bf8 {[%clk 0:00:14]} 35. Qd7 {[%clk 0:00:33]}  Qb7 {[%clk 0:00:10]} 36. Ra7 {[%clk 0:00:31]}  Qxd7 {[%clk 0:00:08]} 37. Rdxd7 {[%clk 0:00:32]}  Bxc5 {[%clk 0:00:04]} 38. bxc5 {[%clk 0:00:33]}  Rxc5 {[%clk 0:00:05]} 39. Bd4 {[%clk 0:00:32]}  Rc1+ {[%clk 0:00:01]} 40. Kh2 {[%clk 0:00:32]}  Kg7 {[%clk 0:00:01]} 41. Rxf7+ {[%clk 0:00:32]}  Kh6 {[%clk 0:00:02]} 42. Be3+ {[%clk 0:00:32]} 1-0


[Site "https://www.chess.com"]